bitfinex/quotes_BTCUSD_20250525
["timestamp","ask_amount","ask_price","bid_price","bid_amount"]
[1748209580435,0.21929174,107330.0,107320.0,2.27522595]
[1748209581406,0.21929174,107330.0,107320.0,2.26590837]
[1748209581778,0.21929174,107330.0,107320.0,2.27522595]
[1748209583058,0.21929174,107330.0,107320.0,2.26806429]
[1748209583264,0.02363298,107330.0,107320.0,2.35760985]
[1748209583423,0.03294977,107330.0,107320.0,2.36692716]
[1748209583937,0.21929096,107330.0,107320.0,2.36692725]
[1748209584141,0.22860784,107330.0,107320.0,2.37624456]
[1748209584380,0.20797486,107330.0,107320.0,1.09297608]
[1748209584604,0.22127486,107330.0,107320.0,1.24189608]
[1748209586842,0.20497486,107330.0,107320.0,1.24189608]
[1748209593118,0.20497486,107330.0,107320.0,1.42825463]
[1748209594640,0.20497486,107330.0,107320.0,1.43757255]
[1748209597098,0.19565807,107330.0,107320.0,1.43757255]
[1748209598438,0.21774119,107330.0,107320.0,1.24189608]
[1748209600292,0.20164119,107330.0,107320.0,1.24189608]
[1748209600588,0.18634119,107330.0,107320.0,1.24189608]
[1748209601867,0.18634119,107330.0,107320.0,0.46193941]
[1748209602078,0.18634119,107330.0,107320.0,1.24189608]
[1748209607619,0.18634119,107330.0,107320.0,2.02185275]
[1748209610393,0.25072144,107340.0,107330.0,0.34]
[1748209610609,0.25072144,107340.0,107330.0,1.89991334]
[1748209611132,0.2594012,107340.0,107330.0,1.89991334]
[1748209611527,0.2614012,107340.0,107330.0,1.89991334]
[1748209612846,0.2634012,107340.0,107330.0,1.89991334]
[1748209613733,0.05467721,107340.0,107330.0,2.14680466]
[1748209613889,0.04536163,107340.0,107330.0,2.14680466]
[1748209614233,0.21580181,107350.0,107340.0,0.54495577]
[1748209614430,0.21580181,107350.0,107340.0,2.29570486]
[1748209614591,0.29991783,107360.0,107350.0,0.1956217]
[1748209614931,0.30001169,107360.0,107350.0,2.13745019]
[1748209615345,0.28894454,107360.0,107350.0,2.13745019]
[1748209616369,0.28994454,107360.0,107350.0,2.13745019]
[1748209616643,0.29094454,107360.0,107350.0,2.13745019]
[1748209618909,0.29094454,107360.0,107350.0,2.14676525]
[1748209619122,0.29094454,107360.0,107350.0,1.37612355]
[1748209619123,0.20708339,107360.0,107350.0,1.37612355]
[1748209620540,0.20708339,107360.0,107350.0,2.14676525]
[1748209620942,0.1977692,107360.0,107350.0,2.14676525]
[1748209622433,0.1977692,107360.0,107350.0,2.29564525]
[1748209623048,0.20708339,107360.0,107350.0,2.30496022]
[1748209623247,0.20708339,107360.0,107350.0,2.3142751]
[1748209623814,0.20708339,107360.0,107350.0,2.31427467]
[1748209626882,0.20708339,107360.0,107350.0,2.14676499]
[1748209627080,0.20708339,107360.0,107350.0,2.29564499]
[1748209628583,0.20708339,107360.0,107350.0,2.30495987]
[1748209642084,0.19704896,107370.0,107360.0,0.21220357]
[1748209642250,0.19709929,107370.0,107360.0,1.78811691]
[1748209642636,0.19709929,107370.0,107360.0,1.59251334]
[1748209643202,0.19909929,107370.0,107360.0,1.59251334]
[1748209643389,0.20009929,107370.0,107360.0,1.59251334]
[1748209643689,0.19809929,107370.0,107360.0,1.78811691]
[1748209643883,0.19809929,107370.0,107360.0,1.7974418]
[1748209644067,0.19909929,107370.0,107360.0,1.7974418]
[1748209647077,0.19901273,107370.0,107360.0,1.7974418]
[1748209651686,0.19901273,107370.0,107360.0,1.80675608]
[1748209659027,0.03125075,107370.0,107360.0,1.82538402]
[1748209659237,0.23614891,107370.0,107360.0,1.82538402]
[1748209659526,0.04987714,107370.0,107360.0,1.82538402]
[1748209659859,0.23614891,107370.0,107360.0,1.82538402]
[1748209660548,0.24546249,107370.0,107360.0,1.82538402]
[1748209660749,0.24546249,107370.0,107360.0,1.8253842]
[1748209661380,0.04056364,107370.0,107360.0,2.17469804]
[1748209663051,0.07194924,107370.0,107360.0,2.17469804]
[1748209666467,0.06263583,107370.0,107360.0,2.17469804]
[1748209666674,0.06328882,107370.0,107360.0,2.17469804]
[1748209667230,0.06328873,107370.0,107360.0,2.17469804]
[1748209667592,0.06328865,107370.0,107360.0,2.17469804]
[1748209667977,0.03190305,107370.0,107360.0,2.17469804]
[1748209668839,0.02258981,107370.0,107360.0,2.17469804]
[1748209669280,0.03190322,107370.0,107360.0,2.17469804]
[1748209669441,0.02258981,107370.0,107360.0,2.17469804]
[1748209669641,0.03190313,107370.0,107360.0,2.17469804]
[1748209670197,0.01327666,107370.0,107360.0,2.17469804]
[1748209670400,0.01327683,107370.0,107360.0,2.17469804]
[1748209670599,0.01327683,107370.0,107360.0,2.18858725]
[1748209671255,0.01227683,107370.0,107360.0,2.18858725]
[1748209671477,0.01127683,107370.0,107360.0,2.18958725]
[1748209671714,0.01127683,107370.0,107360.0,2.19058725]
[1748209672109,0.02058963,107370.0,107360.0,2.19058725]
[1748209672523,0.02058946,107370.0,107360.0,2.19058725]
[1748209672732,0.02990252,107370.0,107360.0,2.19058725]
[1748209673735,0.02058946,107370.0,107360.0,2.19058725]
[1748209673943,0.02058946,107370.0,107360.0,0.63067391]
[1748209674153,0.02058946,107370.0,107360.0,2.19058725]
[1748209674573,0.02990252,107370.0,107360.0,2.19058725]
[1748209677550,0.02799702,107380.0,107370.0,0.57041149]
[1748209677754,0.01918813,107380.0,107370.0,2.29446483]
[1748209677887,0.22406746,107380.0,107370.0,2.29446483]
[1748209678093,0.23274307,107380.0,107370.0,2.29446483]
[1748209678685,0.23374307,107380.0,107370.0,2.29446483]
[1748209679086,0.24405579,107380.0,107370.0,2.29446483]
[1748209679762,0.2254314,107380.0,107370.0,2.12699861]
[1748209679966,0.24831886,107380.0,107370.0,2.09549861]
[1748209680177,0.23900623,107380.0,107370.0,2.04875334]
[1748209680909,0.20680623,107380.0,107370.0,2.04875334]
[1748209682330,0.20680623,107380.0,107370.0,2.08065334]
[1748209682647,0.20680623,107380.0,107370.0,2.04875334]
[1748209683102,0.20680623,107380.0,107370.0,2.23502511]
[1748209683255,0.20680623,107380.0,107370.0,2.24433869]
[1748209683722,0.20680623,107380.0,107370.0,2.27693869]
[1748209684160,0.20680623,107380.0,107370.0,2.24433869]
[1748209684471,0.20680623,107380.0,107370.0,2.25365219]
[1748209685135,0.20680623,107380.0,107370.0,2.2629656]
[1748209686482,0.20680623,107380.0,107370.0,2.2793656]
[1748209686981,0.20680623,107380.0,107370.0,2.2958656]
[1748209692506,0.20680623,107380.0,107370.0,2.28655219]
[1748209703869,0.21611851,107380.0,107370.0,1.93281334]
[1748209704027,0.21611851,107380.0,107370.0,2.04875334]
[1748209704849,0.21611851,107380.0,107370.0,2.07955334]
[1748209707145,0.21611851,107380.0,107370.0,2.27513861]
[1748209707527,0.21611851,107380.0,107370.0,2.12629861]
[1748209707744,0.21611851,107380.0,107370.0,2.27513861]
[1748209707940,0.20680605,107380.0,107370.0,2.27513861]
[1748209708974,0.20680605,107380.0,107370.0,2.26582511]
[1748209709170,0.20680605,107380.0,107370.0,2.27513869]
[1748209709830,0.20680605,107380.0,107370.0,2.28445219]
[1748209711349,0.20680605,107380.0,107370.0,2.29376551]
[1748209714451,0.20680605,107380.0,107370.0,0.73385217]
[1748209714654,0.20680605,107380.0,107370.0,2.29376551]
[1748209716050,0.20680605,107380.0,107370.0,2.30307857]
[1748209716697,0.02055111,107380.0,107370.0,2.31239155]
[1748209716814,0.03917559,107380.0,107370.0,2.31239155]
[1748209717571,0.03817559,107380.0,107370.0,2.31239155]
[1748209717798,0.0381755,107380.0,107370.0,2.31339155]
[1748209718037,0.0371755,107380.0,107370.0,2.31339155]
[1748209718213,0.02786322,107380.0,107370.0,2.31439155]
[1748209718461,0.0371755,107380.0,107370.0,2.31439155]
[1748209718871,0.04648787,107380.0,107370.0,2.31439155]
[1748209719079,0.03781226,107380.0,107370.0,2.31439155]
[1748209720361,0.02849989,107380.0,107370.0,2.31439155]
[1748209720613,0.03781235,107380.0,107370.0,2.31439155]
[1748209721352,0.02849989,107380.0,107370.0,2.31439155]
[1748209722001,0.02849989,107380.0,107370.0,3.09434822]
[1748209722372,0.02849989,107380.0,107370.0,2.31439155]
[1748209722784,0.02849989,107380.0,107370.0,3.09434822]
[1748209724394,0.02849989,107380.0,107370.0,2.31439155]
[1748209724395,0.01918761,107380.0,107370.0,2.31439155]
[1748209724598,0.01918761,107380.0,107370.0,3.09434822]
[1748209725637,0.01918761,107380.0,107370.0,0.75447821]
[1748209725838,0.01918761,107380.0,107370.0,3.09434822]
[1748209725987,0.02849989,107380.0,107370.0,3.09434822]
[1748209726953,0.0098755,107380.0,107370.0,3.09434822]
[1748209727613,0.00056348,107380.0,107370.0,3.09434822]
[1748209727786,0.01131124,107390.0,107380.0,0.24539153]
[1748209727928,0.03861329,107390.0,107380.0,1.80530487]
[1748209729006,0.03861329,107390.0,107380.0,2.14530487]
[1748209729237,0.04792462,107390.0,107380.0,2.14530487]
[1748209729407,0.04892462,107390.0,107380.0,2.14530487]
[1748209730299,0.04997493,107390.0,107380.0,2.14530487]
[1748209734698,0.08136254,107390.0,107380.0,2.14530487]
[1748209739479,0.04997493,107390.0,107380.0,2.14530487]
[1748209741994,0.04997484,107390.0,107380.0,2.14530487]
[1748209742200,0.03135183,107390.0,107380.0,2.14530487]
[1748209742577,0.00405031,107390.0,107380.0,2.23485043]
[1748209742757,0.01336155,107390.0,107380.0,2.23485043]
[1748209743105,0.01336147,107390.0,107380.0,2.23485043]
[1748209744443,0.00405031,107390.0,107380.0,2.23485043]
[1748209744851,0.01336138,107390.0,107380.0,2.23485043]
[1748209747223,0.00405031,107390.0,107380.0,2.23485043]
[1748209747595,0.00305031,107390.0,107380.0,2.23485043]
[1748209747807,0.00205031,107390.0,107380.0,2.23485043]
[1748209748007,0.00205031,107390.0,107380.0,2.23685043]
[1748209748258,0.00205031,107390.0,107380.0,2.23885043]
[1748209749126,0.01136147,107390.0,107380.0,2.23885043]
[1748209749341,0.01136138,107390.0,107380.0,2.23885043]
[1748209750011,0.00205031,107390.0,107380.0,2.23885043]
[1748209752345,0.01862066,107400.0,107390.0,0.58517157]
[1748209752576,0.02793138,107400.0,107390.0,2.29392491]
[1748209753183,0.01862066,107400.0,107390.0,2.29392491]
[1748209753405,0.02793138,107400.0,107390.0,2.29392491]
[1748209754139,0.01862066,107400.0,107390.0,2.29392491]
[1748209754350,0.0279313,107400.0,107390.0,2.29392491]
[1748209754507,0.01862066,107400.0,107390.0,2.29392491]
[1748209755110,0.01862066,107400.0,107390.0,2.29492491]
[1748209756194,0.0093102,107400.0,107390.0,2.29492491]
[1748209756415,0.02793104,107400.0,107390.0,2.38447047]
[1748209756852,0.03724168,107400.0,107390.0,2.38447047]
[1748209757056,0.02793104,107400.0,107390.0,2.38447047]
[1748209757655,0.03724176,107400.0,107390.0,2.38447047]
[1748209758250,0.02793104,107400.0,107390.0,2.38447047]
[1748209758410,0.03724168,107400.0,107390.0,2.38447047]
[1748209759559,0.02061962,107410.0,107400.0,0.58655165]
[1748209759788,0.21613205,107410.0,107400.0,2.13715461]
[1748209760115,0.22479891,107410.0,107400.0,2.13715461]
[1748209760896,0.22579891,107410.0,107400.0,2.13715461]
[1748209761622,0.22679891,107410.0,107400.0,2.14646507]
[1748209764485,0.22679891,107410.0,107400.0,2.13715461]
[1748209764831,0.03128648,107410.0,107400.0,2.14646499]
[1748209765130,0.04059651,107410.0,107400.0,2.14646499]
[1748209765438,0.22679891,107410.0,107400.0,2.14646499]
[1748209765610,0.22679891,107410.0,107400.0,2.13715461]
[1748209767270,0.22679891,107410.0,107400.0,2.14646516]
[1748209768311,0.22679891,107410.0,107400.0,2.15577562]
[1748209769405,0.22679891,107410.0,107400.0,2.165086]
[1748209769771,0.04059651,107410.0,107400.0,2.165086]
[1748209769983,0.04059582,107410.0,107400.0,2.165086]
[1748209770194,0.04990576,107410.0,107400.0,2.165086]
[1748209772982,0.04059582,107410.0,107400.0,2.165086]
[1748209773823,0.02197628,107410.0,107400.0,2.25463156]
[1748209774148,0.03128588,107410.0,107400.0,2.25463156]
[1748209774682,0.04059565,107410.0,107400.0,2.25463156]
[1748209775102,0.03859565,107410.0,107400.0,2.25463156]
[1748209775318,0.02992879,107410.0,107400.0,2.25463156]
[1748209775529,0.02992879,107410.0,107400.0,2.25563156]
[1748209776196,0.02061902,107410.0,107400.0,2.25563156]
[1748209776722,0.02992879,107410.0,107400.0,2.25563156]
[1748209776923,0.02061902,107410.0,107400.0,2.25563156]
[1748209777693,0.02061902,107410.0,107400.0,3.03558823]
[1748209778286,0.002,107410.0,107400.0,3.03558823]
[1748209778503,0.01130812,107430.0,107420.0,0.58601176]
[1748209778706,0.20692415,107430.0,107420.0,2.2947251]
[1748209778963,0.22554049,107430.0,107420.0,2.2947251]
[1748209779181,0.03937276,107430.0,107420.0,2.2947251]
[1748209779339,0.22554049,107430.0,107420.0,2.2947251]
[1748209779545,0.23484887,107430.0,107420.0,2.2947251]
[1748209779746,0.24351837,107430.0,107420.0,2.2947251]
[1748209780214,0.24451837,107430.0,107420.0,2.2947251]
[1748209780566,0.23584887,107430.0,107420.0,2.2947251]
[1748209781165,0.04037276,107430.0,107420.0,2.2947251]
[1748209781435,0.04137276,107430.0,107420.0,2.2947251]
[1748209781963,0.22754049,107430.0,107420.0,2.28541646]
[1748209782178,0.22754049,107430.0,107420.0,2.29937711]
[1748209782932,0.22654049,107430.0,107420.0,2.29937711]
[1748209783371,0.22554049,107430.0,107420.0,2.29937711]
[1748209784447,0.22554049,107430.0,107420.0,2.30868593]
[1748209784765,0.23484887,107430.0,107420.0,2.30868593]
[1748209785301,0.01144821,107430.0,107420.0,2.39823149]
[1748209785494,0.01144821,107430.0,107420.0,2.40754013]
[1748209786450,0.0207559,107430.0,107420.0,2.40754013]
[1748209786644,0.01144821,107430.0,107420.0,2.40754013]
[1748209786871,0.0207559,107430.0,107420.0,2.40754013]
[1748209788578,0.03006376,107430.0,107420.0,2.40754013]
[1748209788786,0.0393718,107430.0,107420.0,2.40754013]
[1748209789005,0.00214061,107430.0,107420.0,2.40754013]
[1748209789214,0.01130596,107450.0,107440.0,0.58407191]
[1748209789435,0.01130587,107450.0,107440.0,2.29274525]
[1748209789586,0.03922461,107450.0,107440.0,2.28343834]
[1748209789775,0.03922461,107450.0,107440.0,2.29274534]
[1748209789973,0.02991813,107450.0,107440.0,2.29274534]
[1748209790173,0.21605182,107450.0,107440.0,2.28343834]
[1748209790795,0.21605182,107450.0,107440.0,2.28743834]
[1748209791598,0.21610211,107450.0,107440.0,2.28743834]
[1748209792279,0.02996903,107450.0,107440.0,2.29674525]
[1748209792451,0.02066255,107450.0,107440.0,2.29674525]
[1748209792831,0.02066255,107450.0,107440.0,2.38629081]
[1748209793031,0.02996894,107450.0,107440.0,2.38629081]
[1748209793357,0.03927542,107450.0,107440.0,2.38629081]
[1748209794469,0.23471506,107450.0,107440.0,2.38629081]
[1748209795349,0.03927542,107450.0,107440.0,2.38629081]
[1748209795519,0.02996894,107450.0,107440.0,2.38629081]
[1748209795752,0.03927542,107450.0,107440.0,2.38629081]
[1748209796699,0.00205029,107450.0,107440.0,2.38629081]
[1748209796895,0.01135633,107450.0,107440.0,2.38629081]
[1748209797066,0.02996868,107450.0,107440.0,2.2282239]
[1748209797272,0.22540824,107450.0,107440.0,2.36767673]
[1748209797432,0.23471489,107450.0,107440.0,2.38629115]
[1748209797629,0.23471489,107450.0,107440.0,2.24683806]
[1748209797859,0.23471489,107450.0,107440.0,1.61564139]
[1748209798229,0.22540824,107450.0,107440.0,1.61564139]
[1748209798420,0.03927516,107450.0,107440.0,2.39559806]
[1748209799251,0.00205029,107450.0,107440.0,2.24683806]
[1748209799477,0.01135633,107450.0,107440.0,2.39559806]
[1748209799663,0.02066255,107450.0,107440.0,2.39559806]
[1748209799980,0.01135633,107450.0,107440.0,2.21911166]
[1748209800306,0.01135633,107450.0,107440.0,2.07035166]
[1748209800538,0.02066255,107450.0,107440.0,2.21911166]
[1748209801841,0.02066255,107450.0,107440.0,2.07035166]
[1748209802083,0.01135633,107450.0,107440.0,2.21907166]
[1748209802472,0.01135625,107450.0,107440.0,2.21907166]
[1748209803079,0.00205029,107450.0,107440.0,2.21907166]
[1748209805352,0.01135616,107450.0,107440.0,2.21907166]
[1748209805712,0.00205029,107450.0,107440.0,2.21907166]
[1748209811871,0.02991353,107470.0,107460.0,1.27704555]
[1748209812073,0.02996382,107470.0,107460.0,1.42576555]
[1748209812274,0.03862469,107470.0,107460.0,1.42576555]
[1748209813154,0.04062469,107470.0,107460.0,1.42576555]
[1748209813880,0.04062469,107470.0,107460.0,1.51531111]
[1748209814118,0.23602796,107470.0,107460.0,1.51531111]
[1748209814842,0.04992952,107470.0,107460.0,1.36659111]
[1748209814981,0.04992952,107470.0,107460.0,1.51531111]
[1748209815179,0.23602796,107470.0,107460.0,1.51531111]
[1748209816679,0.04062469,107470.0,107460.0,1.51531111]
[1748209817075,0.04062469,107470.0,107460.0,1.51526373]
[1748209818026,0.04062461,107470.0,107460.0,1.51526373]
[1748209818233,0.01271116,107470.0,107460.0,1.51526373]
[1748209818436,0.03132004,107470.0,107460.0,1.51526373]
[1748209820505,0.03131995,107470.0,107460.0,1.51526373]
[1748209821155,0.03131987,107470.0,107460.0,1.51526373]
[1748209821960,0.03131987,107470.0,107460.0,2.3793712]
[1748209822319,0.02001547,107470.0,107460.0,2.3793712]
[1748209822522,0.01171116,107470.0,107460.0,2.3793712]
[1748209827472,0.00305029,107470.0,107460.0,2.3793712]
[1748209828871,0.00305029,107470.0,107460.0,3.15728167]
[1748209829052,0.00305029,107470.0,107460.0,2.3793712]
[1748209829247,0.00305029,107470.0,107460.0,3.15728167]
[1748209829862,0.00205029,107470.0,107460.0,3.15728167]
[1748209830029,0.00205029,107470.0,107460.0,2.3793712]
[1748209830230,0.00205029,107470.0,107460.0,2.3803712]
[1748209830963,0.00205029,107470.0,107460.0,2.3813712]
[1748209831348,0.00205029,107470.0,107460.0,3.15928167]
[1748209835104,0.00205029,107470.0,107460.0,3.31728167]
[1748209835313,0.00205029,107470.0,107460.0,3.34517867]
[1748209835908,0.03921109,107490.0,107480.0,0.55399226]
[1748209836062,0.04837606,107490.0,107480.0,2.2907932]
[1748209836270,0.02977021,107490.0,107480.0,2.38033876]
[1748209836500,0.03907322,107490.0,107480.0,2.38033876]
[1748209836728,0.03907322,107490.0,107480.0,2.39443122]
[1748209837187,0.24374332,107490.0,107480.0,2.24575122]
[1748209837405,0.04837632,107490.0,107480.0,2.39443122]
[1748209838341,0.05037632,107490.0,107480.0,2.39443122]
[1748209839443,0.05037632,107490.0,107480.0,2.40369248]
[1748209841510,0.02246738,107490.0,107480.0,2.40369248]
[1748209841709,0.03176996,107490.0,107480.0,2.40369248]
[1748209842436,0.02246738,107490.0,107480.0,2.40369248]
[1748209842598,0.03176996,107490.0,107480.0,2.40369248]
[1748209843232,0.02246738,107490.0,107480.0,2.40369248]
[1748209843615,0.03176987,107490.0,107480.0,2.40369248]
[1748209844655,0.03176987,107490.0,107480.0,2.25501248]
[1748209844860,0.03176987,107490.0,107480.0,2.40369248]
[1748209845691,0.04107245,107490.0,107480.0,2.40369248]
[1748209846103,0.01316497,107490.0,107480.0,2.40369248]
[1748209848466,0.02246738,107490.0,107480.0,2.40369248]
[1748209849383,0.01316497,107490.0,107480.0,2.40369248]
[1748209849540,0.02246746,107490.0,107480.0,2.40369248]
[1748209850410,0.02246738,107490.0,107480.0,2.40369248]
[1748209850610,0.02246738,107490.0,107480.0,2.25501248]
[1748209850798,0.02246738,107490.0,107480.0,2.56149248]
[1748209852922,0.02046738,107490.0,107480.0,2.56149248]
[1748209853130,0.02046738,107490.0,107480.0,2.56249248]
[1748209853332,0.02046738,107490.0,107480.0,2.56349248]
[1748209854380,0.01116497,107490.0,107480.0,2.56349248]
[1748209857150,0.01116497,107490.0,107480.0,2.25701248]
[1748209857386,0.01116497,107490.0,107480.0,2.56345248]
[1748209863277,0.02046738,107490.0,107480.0,2.56345248]
[1748209863482,0.01116497,107490.0,107480.0,2.56345248]
[1748209864134,0.02046738,107490.0,107480.0,2.56345248]
[1748209864924,0.01116497,107490.0,107480.0,2.56345248]
[1748209865351,0.01116497,107490.0,107480.0,2.59134748]
[1748209869913,0.01116497,107490.0,107480.0,2.58208622]
[1748209873622,0.01116497,107490.0,107480.0,1.02626528]
[1748209873824,0.01116497,107490.0,107480.0,2.58208622]
[1748209877605,0.01116497,107490.0,107480.0,2.27564622]
[1748209877753,0.01116497,107490.0,107480.0,2.58188622]
[1748209878949,0.01116497,107490.0,107480.0,0.71982528]
[1748209879157,0.01116497,107490.0,107480.0,2.58188622]
[1748209880695,0.02046738,107490.0,107480.0,2.58188622]
[1748209880993,0.01116497,107490.0,107480.0,2.58188622]
[1748209881815,0.05326958,107510.0,107500.0,1.33186289]
[1748209882022,0.05342039,107510.0,107500.0,1.58518845]
[1748209882220,0.05341996,107510.0,107500.0,1.58518845]
[1748209882456,0.06272098,107510.0,107500.0,1.58518845]
[1748209882662,0.07202209,107510.0,107500.0,1.57008854]
[1748209882867,0.08132346,107510.0,107500.0,1.57008854]
[1748209883071,0.24875113,107510.0,107500.0,1.30395698]
[1748209883271,0.27115011,107510.0,107500.0,1.4619393]
[1748209883685,0.263849,107510.0,107500.0,1.11791047]
[1748209883892,0.263849,107510.0,107500.0,0.34]
[1748209884105,0.18609844,107470.0,107460.0,0.80958297]
[1748209884331,0.21779844,107470.0,107460.0,0.80958297]
[1748209884534,0.21779844,107470.0,107460.0,0.342]
[1748209884738,0.21779844,107470.0,107460.0,1.11991047]
[1748209884945,0.21779844,107470.0,107460.0,1.26859047]
[1748209885141,0.21779844,107470.0,107460.0,0.93259047]
[1748209885554,0.21779844,107470.0,107460.0,2.05300393]
[1748209885763,0.19540336,107470.0,107460.0,2.05300393]
[1748209885970,0.2047081,107470.0,107460.0,1.40858937]
[1748209886198,0.20470766,107470.0,107460.0,1.52354037]
[1748209886403,0.02791336,107470.0,107460.0,1.52884555]
[1748209886609,0.19494968,107500.0,107480.0,0.01860759]
[1748209886824,0.01815438,107500.0,107490.0,1.42533165]
[1748209887031,0.03675798,107500.0,107490.0,1.42533165]
[1748209887229,0.04606004,107500.0,107490.0,1.42533165]
[1748209887660,0.04650935,107500.0,107490.0,1.42533165]
[1748209888093,0.23255655,107500.0,107490.0,1.42533165]
[1748209888294,0.22325527,107500.0,107490.0,1.26734907]
[1748209888458,0.19534883,107500.0,107490.0,1.21235932]
[1748209888665,0.19534883,107500.0,107490.0,1.21335932]
[1748209888874,0.27920998,107500.0,107490.0,1.21335932]
[1748209890414,0.27920998,107500.0,107490.0,1.06467932]
[1748209890591,0.27920998,107500.0,107490.0,1.21335932]
[1748209891215,0.27920998,107500.0,107490.0,1.22266251]
[1748209891846,0.27920998,107500.0,107490.0,1.40872632]
[1748209892568,0.19534883,107500.0,107490.0,1.40872632]
[1748209892866,0.19534883,107500.0,107490.0,1.41802942]
[1748209897442,0.19534883,107500.0,107490.0,1.42733243]
[1748209899096,0.19534883,107500.0,107490.0,1.43663536]
[1748209900175,0.19534883,107500.0,107490.0,1.4459382]
[1748209900591,0.20465089,107500.0,107490.0,1.44593759]
[1748209901205,0.01860386,107500.0,107490.0,1.44593759]
[1748209901446,0.01860334,107500.0,107490.0,1.53548315]
[1748209901645,0.03720746,107500.0,107490.0,1.53548315]
[1748209902027,0.03720737,107500.0,107490.0,1.53548315]
[1748209902575,0.02790531,107500.0,107490.0,1.53548315]
[1748209905452,0.0279054,107500.0,107490.0,1.53548315]
[1748209906599,0.03720755,107500.0,107490.0,1.53548315]
[1748209908390,0.22325406,107500.0,107490.0,1.53548315]
[1748209908748,0.22325406,107500.0,107490.0,1.56337615]
[1748209909227,0.03720755,107500.0,107490.0,1.56337615]
[1748209909826,0.04650978,107500.0,107490.0,1.56337615]
[1748209910068,0.0279054,107500.0,107490.0,1.56337615]
[1748209910416,0.03720755,107500.0,107490.0,1.53548315]
[1748209911040,0.22325406,107500.0,107490.0,1.53548315]
[1748209911268,0.23255629,107500.0,107490.0,1.53548315]
[1748209912426,0.20663168,107510.0,107500.0,0.58495242]
[1748209912635,0.23389416,107510.0,107500.0,1.36607748]
[1748209912841,0.23389346,107510.0,107500.0,1.38468099]
[1748209913410,0.04786426,107510.0,107500.0,1.38468099]
[1748209913587,0.24334555,107510.0,107500.0,1.38468099]
[1748209913787,0.24534555,107510.0,107500.0,1.38468099]
[1748209914009,0.24734555,107510.0,107500.0,1.38468099]
[1748209915547,0.24734625,107510.0,107500.0,1.38468099]
[1748209916421,0.24734625,107510.0,107500.0,1.37537928]
[1748209917959,0.24734625,107510.0,107500.0,1.46126371]
[1748209918390,0.04271422,107510.0,107500.0,1.47056542]
[1748209919096,0.23804479,107510.0,107500.0,1.47056542]
[1748209921948,0.23804479,107510.0,107500.0,1.46126371]
[1748209922102,0.24734625,107510.0,107500.0,1.46126371]
[1748209922888,0.23804523,107510.0,107500.0,1.46126371]
[1748209923386,0.23804523,107510.0,107500.0,1.256613]
[1748209923500,0.23804523,107510.0,107500.0,1.44265951]
[1748209924103,0.23804523,107510.0,107500.0,1.45196191]
[1748209924307,0.22874412,107510.0,107500.0,1.45196191]
[1748209924660,0.22874412,107510.0,107500.0,1.40235805]
[1748209924860,0.21944284,107510.0,107500.0,1.55099805]
[1748209925147,0.21944284,107510.0,107500.0,1.5603002]
[1748209925565,0.21944284,107510.0,107500.0,1.54169582]
[1748209925768,0.21944284,107510.0,107500.0,1.55099805]
[1748209925973,0.21944284,107510.0,107500.0,1.56699805]
[1748209926254,0.21944284,107510.0,107500.0,1.37164931]
[1748209926478,0.21014147,107510.0,107500.0,1.39695163]
[1748209926706,0.21014147,107510.0,107500.0,1.58299814]
[1748209936742,0.27426935,107510.0,107500.0,1.58299814]
[1748209938479,0.27426935,107510.0,107500.0,1.59230037]
[1748209945785,0.08823989,107510.0,107500.0,1.60160234]
[1748209945991,0.2928714,107510.0,107500.0,1.59230037]
[1748209946140,0.2928714,107510.0,107500.0,1.60160252]
[1748209946967,0.2928714,107510.0,107500.0,1.61090458]
[1748209953640,0.28357046,107510.0,107500.0,1.61090458]
[1748209960706,0.28357046,107510.0,107500.0,1.62020655]
[1748209964413,0.09754126,107510.0,107500.0,1.62020655]
[1748209964710,0.09754126,107510.0,107500.0,1.62020551]
[1748209964912,0.09754126,107510.0,107500.0,1.64809751]
[1748209965384,0.09754031,107510.0,107500.0,1.64809751]
[1748209965605,0.10684142,107510.0,107500.0,1.64809751]
[1748209966121,0.09754031,107510.0,107500.0,1.64809751]
[1748209967169,0.07893869,107510.0,107500.0,1.64809751]
[1748209969867,0.08823937,107510.0,107500.0,1.64809751]
[1748209970402,0.08823937,107510.0,107500.0,2.42556126]
[1748209971299,0.01481081,107510.0,107500.0,2.42556126]
[1748209976785,0.01281081,107510.0,107500.0,2.42556126]
[1748209977038,0.01081081,107510.0,107500.0,2.42556126]
[1748209977243,0.01181081,107510.0,107500.0,2.42556126]
[1748209977450,0.01081081,107510.0,107500.0,2.42556126]
[1748209977765,0.00215081,107510.0,107500.0,2.42656126]
[1748209978637,0.00215081,107510.0,107500.0,1.64909751]
[1748209979300,0.00215081,107510.0,107500.0,1.65009751]
[1748209979701,0.00215081,107510.0,107500.0,2.42756126]
[1748209990128,6e-05,107520.0,107500.0,2.39035328]
[1748209990311,6e-05,107520.0,107510.0,2.23253045]
[1748209990526,6e-05,107520.0,107510.0,2.23020559]
[1748209990677,6e-05,107520.0,107510.0,2.25809259]
[1748209992985,0.00106,107520.0,107510.0,2.25809259]
[1748209993613,6e-05,107520.0,107510.0,2.25809259]
[1748209993915,6e-05,107520.0,107510.0,2.25909259]
[1748209994343,6e-05,107520.0,107510.0,2.26009259]
[1748209999811,6e-05,107520.0,107510.0,2.41689259]
[1748210001660,6e-05,107520.0,107510.0,0.67336509]
[1748210001855,6e-05,107520.0,107510.0,2.53373259]
[1748210002070,6e-05,107520.0,107510.0,2.56493259]
[1748210003232,0.01948112,107540.0,107530.0,0.58509274]
[1748210003435,0.01113336,107550.0,107540.0,0.58507285]
[1748210003638,0.01128414,107550.0,107540.0,2.22954591]
[1748210003971,0.01128414,107550.0,107540.0,2.25742491]
[1748210004391,0.05264374,107550.0,107540.0,2.25742491]
[1748210005767,0.12825707,107570.0,107560.0,0.55383309]
[1748210005913,0.156145,107570.0,107560.0,1.47989684]
[1748210006119,0.156145,107570.0,107560.0,1.5694424]
[1748210006120,0.09515664,107570.0,107560.0,1.5694424]
[1748210006331,0.11309963,107570.0,107560.0,1.5973164]
[1748210006531,0.11309963,107570.0,107560.0,1.62052518]
[1748210006735,0.10380397,107570.0,107560.0,1.62052518]
[1748210008071,0.10680397,107570.0,107560.0,1.62052518]
[1748210008281,0.10380397,107570.0,107560.0,1.62052518]
[1748210008698,0.11309972,107570.0,107560.0,1.62052518]
[1748210009259,0.11409972,107570.0,107560.0,1.62052518]
[1748210010314,0.11409963,107570.0,107560.0,1.62052518]
[1748210010726,0.03023848,107570.0,107560.0,1.62052518]
[1748210011356,0.0395344,107570.0,107560.0,1.62052518]
[1748210011558,0.04018316,107570.0,107560.0,1.62052518]
[1748210011761,0.25170478,107570.0,107560.0,1.62052518]
[1748210012280,0.06577934,107570.0,107560.0,1.62052518]
[1748210012592,0.06477934,107570.0,107560.0,1.62052518]
[1748210013405,0.06477934,107570.0,107560.0,1.62152518]
[1748210013609,0.04847934,107570.0,107560.0,1.62152518]
[1748210014030,0.03918316,107570.0,107560.0,1.62152518]
[1748210017974,0.0478132,107570.0,107560.0,1.62152518]
[1748210019413,0.03851711,107570.0,107560.0,1.62152518]
[1748210019607,0.03851703,107570.0,107560.0,1.62152518]
[1748210021446,0.04781312,107570.0,107560.0,1.62152518]